Workbook

Sheet CF_D
B2: Konzern-Kapitalflussrechnung (IFRS)
B3: vom 1. Oktober 2017 bis 31. März 2018
C4: 2017/18 1.10.17 bis 31.3.18 | D4: 2016/17 1.10.16 bis 31.3.17
C5: Tsd. € | D5: Tsd. €
B6: Cashflow aus der gewöhnlichen Geschäftstätigkeit:
B7: Konzernergebnis | C7: =56031+262 -> 56293 | D7: =61738+2087 -> 63825
B8: Anpassung zur Überleitung des Konzernergebnisses zur Nettoveränderung der liquiden Mittel aus laufender Geschäftstätigkeit:
B9: Ertragsteueraufwand | C9: 27652 | D9: 29147
B10: Zinserträge / Zinsaufwendungen | C10: 1139 | D10: 743
B11: Ergebnis aus der Veräußerung der rechtlichen Einheit/ des hydrophilen IOL-Geschäftes Aaren Scientific Inc. | C11: -2499 | D11: -7721
B12: Abschreibungen | C12: 13076 | D12: 11186
B13: Gewinne/Verluste aus Abgang/Abwertung von Anlagevermögen | C13: 1763 | D13: -18
B14: Erhaltene Zinsen | C14: 366 | D14: 384
B15: Gezahlte Zinsen | C15: -1161 | D15: -707
B16: Erstattete Ertragsteuern | C16: 519 | D16: 5476
B17: Gezahlte Ertragsteuern | C17: -26200 | D17: -33875
B18: Veränderungen des Working Capitals:
B19: Forderungen aus Lieferungen und Leistungen | C19: -14826 | D19: -24419
B20: Vorräte | C20: -18883 | D20: -18559
B21: Sonstige Vermögenswerte | C21: 17183 | D21: 1355
B22: Verbindlichkeiten aus Lieferungen und Leistungen | C22: -14147 | D22: -92
B23: Rückstellungen und finanzielle Verbindlichkeiten | C23: =-6072 -> -6072 | D23: -5896
B24: Sonstige Verbindlichkeiten | C24: 159 | D24: -4340
B25: Gesamte Anpassungen | C25: =SUM(C9:C24) -> -21931 | D25: =SUM(D9:D24) -> -47336
B26: Netto-Kapitalzufluss/(-abfluss) aus der gewöhnlichen Geschäftstätigkeit | C26: =+C7+C25 -> 34362 | D26: =+D7+D25 -> 16489
B27: Cashflow aus der Investitionstätigkeit:
B28: Investitionen in Sachanlagen | C28: -6652 | D28: -5974
B29: Investitionen in sonstige immaterielle Vermögenswerte | C29: -6897 | D29: -7657
B30: Erlöse aus dem Verkauf von Anlagevermögen | C30: 205 | D30: 224
B31: Auszahlungen für sonstige Ausleihungen | C31: 0 | D31: =-2131-269 -> -2400
B32: Investitionen/ Devestitionen in Wertpapiere | C32: 1855 | D32: 0
B33: Erwerb von Anteilen an verbundenen nicht-konsolidierten Unternehmen | C33: 0 | D33: =-(4128+4472+5750)/1.0573 -> -13572.30682
B34: Einzahlungen aus der Veräußerung der rechtlichen Einheit/ des hydrophilen IOL-Geschäftes Aaren Scientific Inc. | C34: 2548 | D34: 9289
B35: Netto-Kapitalzufluss/(-abfluss) aus der Investitionstätigkeit | C35: =SUM(C28:C34) -> -8941 | D35: =SUM(D28:D34) -> -20090.30682
B36: Cashflow aus der Finanzierungsstätigkeit:
B37: Aufnahme/(Rückzahlung) der kurzfristigen Kredite | C37: =-87+15 -> -72 | D37: -193
B38: Aufnahme/(Rückzahlung) der langfristigen Kredite | C38: =-232-15 -> -247 | D38: -343
B39: (Zunahme)/Abnahme der Forderungen aus Finanzausgleich | C39: =23481-1427 -> 22054 | D39: -322769
B40: Zunahme/(Abnahme) der Verbindlichkeiten aus Finanzausgleich | C40: =-39788+1427 -> -38361 | D40: 14449
B41: Zunahme/(Abnahme) der Verbindlichkeiten aus Finanzierungsleasing | C41: -1384 | D41: -1499
B42: Dividendenzahlung an nicht-beherrschende Gesellschafter | C42: -5551 | D42: 0
B43: Einzahlungen aus Kapitalerhöhung (netto) | C43: 0 | D43: =(8130.96*38.94)-(8130.96*38.94)*0.005 -> 315036.4845
B44: Netto-Kapitalzufluss/(-abfluss) aus der Finanzierungsstätigkeit | C44: =SUM(C37:C43) -> -23561 | D44: =SUM(D37:D43) -> 4681.484488
B45: Einfluss von Wechselkursänderungen auf Zahlungsmittel und Zahlungsmitteläquivalente | C45: -134 | D45: =174-656 -> -482
B46: Zunahme/(Abnahme) der Zahlungsmittel und Zahlungsmitteläquivalente | C46: =+C26+C35+C44+C45 -> 1726 | D46: =+D26+D35+D44+D45 -> 598.1776687
B47: Zahlungsmittel und Zahlungsmitteläquivalente am Beginn des Berichtszeitraumes | C47: 3925 | D47: 8710
B48: Zahlungsmittel und Zahlungsmitteläquivalente am Ende des Berichtszeitraumes | C48: =+C46+C47 -> 5651 | D48: =+D46+D47 -> 9308.177669
B49: Der nachfolgende Konzernanhang ist integraler Bestandteil des ungeprüften Konzernabschlusses.
